[Event "Romania GP Final-Prel 2024"]
[Site "Alba Iulia"]
[Date "2024.11.25"]
[Round "1.1"]
[White "Stanciu, Alexandru-Ovidiu"]
[Black "Dragomirescu, Angela"]
[Result "1-0"]
[ECO "A53"]
[WhiteElo "2337"]
[BlackElo "2060"]
[Annotator "RC"]
[PlyCount "58"]
[EventDate "2024.11.22"]
[EventType "tourn"]
[EventCountry "ROU"]
[SourceTitle "playchess.com"]
[Source "ChessBase"]
[SourceQuality "1"]
[TimeControl "900+5"]

1. d4 {[%emt 0:00:05]} d6 {[%emt 0:00:01]} 2. c4 {[%emt 0:00:12]} e5 {[%emt 0:00:01]} 3. Nc3 {[%emt 0:00:05]} Nd7 {[%emt 0:01:00]} 4. g3 {[%emt 0:00:23]} Ngf6 {[%emt 0:00:11]} 5. Bg2 {[%emt 0:00:04]} Be7 {[%emt 0:00:02]} 6. e3 {[%emt 0:00:24]} c6 {[%emt 0:00:18]} 7. Nge2 {[%emt 0:00:06]} O-O {[%emt 0:00:11]} 8. O-O {[%emt 0:00:14]} Re8 {[%emt 0:00:10]} 9. b3 {[%emt 0:00:26]} Bf8 {[%emt 0:00:10]} 10. Qc2 {[%emt 0:00:03]} Qc7 {[%emt 0:03:08]} 11. Bb2 {[%emt 0:00:26]} Rb8 {[%emt 0:00:02]} 12. Rac1 {[%emt 0:01:24]} a6 {[%emt 0:00:28]} 13. h3 {[%emt 0:01:26]} b6 {[%emt 0:00:54]} 14. g4 {[%emt 0:00:17]} h6 {[%emt 0:00:38]} 15. Ng3 {[%emt 0:00:09]} exd4 {[%emt 0:01:11]} 16. exd4 {[%emt 0:00:07]} b5 {[%emt 0:08:00]} 17. Nce2 {[%emt 0:02:29]} bxc4 {[%emt 0:00:00]} 18. Qxc4 {[%emt 0:00:11]} c5 {[%emt 0:00:00]} 19. Rfd1 {[%emt 0:03:05]} Bb7 {[%emt 0:00:00]} 20. dxc5 {[%emt 0:00:17]} dxc5 {[%emt 0:00:00]} 21. Qf4 {[%emt 0:00:32]} Qxf4 {[%emt 0:00:00]} 22. Nxf4 {[%emt 0:00:03]} Ne5 {[%emt 0:00:00]} 23. Bxe5 {[%emt 0:01:09]} Rxe5 {[%emt 0:00:00]} 24. Nd3 {[%emt 0:00:02]} Re6 {[%emt 0:00:16]} 25. Nxc5 {[%emt 0:00:10]} Bxc5 {[%emt 0:00:03]} 26. Rxc5 {[%emt 0:00:02]} Bxg2 {[%emt 0:00:05]} 27. Kxg2 {[%emt 0:00:03]} Ne4 {[%emt 0:00:12]} 28. Nxe4 {[%emt 0:00:21]} Rxe4 {[%emt 0:00:00]} 29. Rd6 {[%emt 0:00:07]} Ra8 {[%emt 0:00:22]} 1-0

[Event "Romania GP Final-Prel 2024"]
[Site "Alba Iulia"]
[Date "2024.11.25"]
[Round "1.2"]
[White "Deac, Bogdan-Daniel"]
[Black "Kozak, Adam"]
[Result "1/2-1/2"]
[ECO "B52"]
[WhiteElo "2687"]
[BlackElo "2591"]
[Annotator "TA"]
[PlyCount "58"]
[EventDate "2024.11.22"]
[EventType "tourn"]
[EventCountry "ROU"]
[SourceTitle "playchess.com"]
[Source "ChessBase"]
[SourceQuality "1"]
[TimeControl "900+5"]

{[%evp 19,58,34,57,0,0,0,0,0,12,5,14,14,10,13,13,0,8,0,0,0,0,0,0,0,0,0,0,0,0,0,0,0,0,0,0,0,0,0,0,0,0]} 1. e4 {[%emt 0:00:03]} c5 {[%emt 0:00:02]} 2. Nf3 {[%emt 0:00:07]} d6 {[%emt 0:00:02]} 3. Bb5+ {[%emt 0:00:05]} Bd7 {[%emt 0:00:22]} 4. Bxd7+ {[%emt 0:00:03]} Nxd7 {[%emt 0:00:02]} 5. Qe2 {[%emt 0:00:34]} e6 {[%emt 0:00:21]} 6. c3 {[%emt 0:00:51]} Ngf6 {[%emt 0:00:23]} 7. d4 {[%emt 0:00:13]} cxd4 {[%emt 0:00:25]} 8. cxd4 {[%emt 0:00:04]} d5 {[%emt 0:00:07]} 9. e5 {[%emt 0:00:01]} Ne4 {[%emt 0:00:02]} 10. O-O {[%emt 0:00:12]} Be7 {[%emt 0:00:18]} 11. Nbd2 {[%emt 0:01:17]} ({White should try} 11. Ne1 $14) 11... Nxd2 $11 {[%emt 0:00:03] The position is equal.} 12. Bxd2 {[%emt 0:00:02]} O-O {[%emt 0:00:50]} 13. Rac1 {[%emt 0:00:22]} Rc8 {[%emt 0:01:15]} 14. Qb5 {[%emt 0:02:08] [#] Rxc8 is the strong threat.} Nb6 {[%emt 0:01:10]} 15. Rxc8 {[%emt 0:00:11]} Qxc8 {[%emt 0:00:02]} 16. b3 {[%emt 0:00:09]} Qe8 {[%emt 0:01:45]} 17. Qa5 {[%emt 0:03:26]} Qb8 {[%emt 0:00:42]} 18. h4 {[%emt 0:01:16]} Rc8 {[%emt 0:00:42]} 19. Rc1 {[%emt 0:00:18]} Rxc1+ {[%emt 0:00:38]} 20. Bxc1 {[%emt 0:00:05]} h6 {[%emt 0:00:29]} 21. Ba3 {[%emt 0:02:54]} Bxa3 {[%emt 0:01:59]} 22. Qxa3 {[%emt 0:00:01][%mdl 4096] Endgame. KQN-KQN} Nd7 {[%emt 0:00:25]} 23. g3 {[%emt 0:00:23]} a6 {[%emt 0:00:07]} 24. Qe7 {[%emt 0:00:08]} Qc8 {[%emt 0:00:06]} 25. Kg2 {[%emt 0:00:19]} Nb8 {[%emt 0:00:12]} 26. Ne1 {[%emt 0:00:45]} Nc6 {[%emt 0:00:13][%csl LRd4,LRe7]} 27. Qc5 {[%emt 0:00:04]} Qf8 {[%emt 0:00:32]} 28. Qxf8+ {[%emt 0:00:11]} Kxf8 {[%emt 0:00:03]} 29. Nc2 {[%emt 0:00:01]} Ke7 {[%emt 0:00:30] A rather calm draw.   Weighted Error Value: White=0.05 (flawless) /Black=0.02 (flawless) .  OK:         	White=8     	Black=14} 1/2-1/2

[Event "Romania GP Final-Prel 2024"]
[Site "Alba Iulia"]
[Date "2024.11.25"]
[Round "1.3"]
[White "Kantor, Gergely"]
[Black "Obada, Ema"]
[Result "1-0"]
[ECO "D31"]
[WhiteElo "2554"]
[BlackElo "2060"]
[Annotator "RC"]
[PlyCount "67"]
[EventDate "2024.11.22"]
[EventType "tourn"]
[EventCountry "ROU"]
[SourceTitle "playchess.com"]
[Source "ChessBase"]
[SourceQuality "1"]
[TimeControl "900+5"]

1. d4 {[%emt 0:00:03]} d5 {[%emt 0:00:04]} 2. c4 {[%emt 0:00:01]} e6 {[%emt 0:00:01]} 3. Nc3 {[%emt 0:00:03]} a6 {[%emt 0:00:02]} 4. cxd5 {[%emt 0:00:09]} exd5 {[%emt 0:00:02]} 5. a3 {[%emt 0:00:27]} c6 {[%emt 0:00:57]} 6. Bf4 {[%emt 0:00:33]} Nf6 {[%emt 0:00:21]} 7. e3 {[%emt 0:00:07]} Bd6 {[%emt 0:00:23]} 8. Bxd6 {[%emt 0:00:04]} Qxd6 {[%emt 0:00:02]} 9. Bd3 {[%emt 0:00:02]} O-O {[%emt 0:00:49]} 10. h3 {[%emt 0:00:08]} Re8 {[%emt 0:00:26]} 11. Nge2 {[%emt 0:00:03]} Be6 {[%emt 0:01:09]} 12. O-O {[%emt 0:00:08]} Nbd7 {[%emt 0:00:05]} 13. Qd2 {[%emt 0:00:31]} Rad8 {[%emt 0:00:24]} 14. Rae1 {[%emt 0:01:10]} h6 {[%emt 0:01:37]} 15. b4 {[%emt 0:00:53]} a5 {[%emt 0:00:51]} 16. bxa5 {[%emt 0:00:04]} Qxa3 {[%emt 0:00:17]} 17. Ra1 {[%emt 0:00:03]} Qe7 {[%emt 0:01:25]} 18. Rfb1 {[%emt 0:00:04]} Rb8 {[%emt 0:00:43]} 19. Na4 {[%emt 0:01:08]} Ne4 {[%emt 0:01:08]} 20. Bxe4 {[%emt 0:00:28]} dxe4 {[%emt 0:00:01]} 21. Qb4 {[%emt 0:00:04]} Qg5 {[%emt 0:01:10]} 22. Nf4 {[%emt 0:00:03]} Bd5 {[%emt 0:01:45]} 23. Qd6 {[%emt 0:00:27]} Red8 {[%emt 0:01:41]} 24. Nc3 {[%emt 0:00:58]} Nf6 {[%emt 0:00:48]} 25. Qc5 {[%emt 0:00:17]} Qf5 {[%emt 0:00:10]} 26. Rb2 {[%emt 0:00:13]} Qd7 {[%emt 0:00:07]} 27. Rab1 {[%emt 0:00:05]} Rdc8 {[%emt 0:00:08]} 28. Na4 {[%emt 0:00:11]} Rc7 {[%emt 0:00:10]} 29. Nb6 {[%emt 0:00:15]} Qd8 {[%emt 0:00:06]} 30. a6 {[%emt 0:00:13]} Kh8 {[%emt 0:00:26]} 31. a7 {[%emt 0:00:03]} Ra8 {[%emt 0:00:02]} 32. Nxa8 {[%emt 0:00:19]} Qxa8 {[%emt 0:00:01]} 33. Rxb7 {[%emt 0:00:14]} Rxb7 {[%emt 0:00:13]} 34. Rxb7 {[%emt 0:00:02]} 1-0

[Event "Romania GP Final-Prel 2024"]
[Site "Alba Iulia"]
[Date "2024.11.25"]
[Round "1.4"]
[White "Manolache, Marius"]
[Black "Gavrilescu, David"]
[Result "1/2-1/2"]
[ECO "A13"]
[WhiteElo "2407"]
[BlackElo "2545"]
[Annotator "RC"]
[PlyCount "66"]
[EventDate "2024.11.22"]
[EventType "tourn"]
[EventCountry "ROU"]
[SourceTitle "playchess.com"]
[Source "ChessBase"]
[SourceQuality "1"]
[TimeControl "900+5"]

1. Nf3 {[%emt 0:00:06]} d5 {[%emt 0:00:02]} 2. e3 {[%emt 0:00:02]} Nf6 {[%emt 0:00:02]} 3. b3 {[%emt 0:00:01]} e6 {[%emt 0:00:05]} 4. Bb2 {[%emt 0:00:02]} Bd6 {[%emt 0:00:08]} 5. c4 {[%emt 0:00:05]} c5 {[%emt 0:00:05]} 6. Be2 {[%emt 0:00:06]} O-O {[%emt 0:00:03]} 7. O-O {[%emt 0:00:03]} Nc6 {[%emt 0:00:08]} 8. d4 {[%emt 0:00:08]} cxd4 {[%emt 0:01:01]} 9. cxd5 {[%emt 0:00:21]} exd5 {[%emt 0:00:04]} 10. Nxd4 {[%emt 0:00:03]} Re8 {[%emt 0:00:18]} 11. Nd2 {[%emt 0:00:25]} Bc7 {[%emt 0:00:02]} 12. Rc1 {[%emt 0:00:28]} Qd6 {[%emt 0:00:55]} 13. g3 {[%emt 0:01:31]} a6 {[%emt 0:02:42]} 14. Qc2 {[%emt 0:00:34]} Bh3 {[%emt 0:00:22]} 15. Rfd1 {[%emt 0:00:17]} Bb6 {[%emt 0:04:15]} 16. Nxc6 {[%emt 0:03:18]} Rac8 {[%emt 0:00:28]} 17. Qd3 {[%emt 0:00:02]} Rxc6 {[%emt 0:00:16]} 18. Nc4 {[%emt 0:00:04]} Qe6 {[%emt 0:01:01]} 19. Nxb6 {[%emt 0:00:09]} Rxc1 {[%emt 0:00:05]} 20. Rxc1 {[%emt 0:00:21]} Qxb6 {[%emt 0:00:01]} 21. Qd4 {[%emt 0:02:07]} Qe6 {[%emt 0:01:16]} 22. Bd3 {[%emt 0:03:28]} h5 {[%emt 0:01:06]} 23. Qf4 {[%emt 0:00:37]} Ne4 {[%emt 0:01:18]} 24. Bxe4 {[%emt 0:01:51]} Qxe4 {[%emt 0:00:46]} 25. Qxe4 {[%emt 0:00:02]} dxe4 {[%emt 0:00:01]} 26. Rc5 {[%emt 0:00:07]} Bg4 {[%emt 0:00:29]} 27. Bd4 {[%emt 0:00:06]} f6 {[%emt 0:00:03]} 28. Kf1 {[%emt 0:00:18]} Re7 {[%emt 0:00:05]} 29. Ke1 {[%emt 0:00:05]} Kf7 {[%emt 0:00:03]} 30. Kd2 {[%emt 0:00:07]} Rd7 {[%emt 0:00:08]} 31. Kc3 {[%emt 0:00:07]} Ke6 {[%emt 0:00:02]} 32. h4 {[%emt 0:00:14]} Kd6 {[%emt 0:00:05]} 33. Kb4 {[%emt 0:00:12]} Rc7 {[%emt 0:00:11]} 1/2-1/2

[Event "Romania GP Final-Prel 2024"]
[Site "Alba Iulia"]
[Date "2024.11.25"]
[Round "1.5"]
[White "Cnejev, Vladimir-Alexandru"]
[Black "Nedelcu, Teodor-Cosmin"]
[Result "1/2-1/2"]
[ECO "B40"]
[WhiteElo "2288"]
[BlackElo "2320"]
[Annotator "RC"]
[PlyCount "82"]
[EventDate "2024.11.22"]
[EventType "tourn"]
[EventCountry "ROU"]
[SourceTitle "playchess.com"]
[Source "ChessBase"]
[SourceQuality "1"]
[TimeControl "900+5"]

1. e4 {[%emt 0:00:04]} c5 {[%emt 0:00:02]} 2. Nf3 {[%emt 0:00:02]} e6 {[%emt 0:00:03]} 3. d4 {[%emt 0:00:02]} cxd4 {[%emt 0:00:02]} 4. Nxd4 {[%emt 0:00:02]} Nf6 {[%emt 0:00:03]} 5. Bd3 {[%emt 0:00:03]} Nc6 {[%emt 0:00:07]} 6. Nxc6 {[%emt 0:00:05]} bxc6 {[%emt 0:00:02]} 7. Bf4 {[%emt 0:00:04]} d5 {[%emt 0:00:33]} 8. Nd2 {[%emt 0:00:05]} Be7 {[%emt 0:01:35]} 9. O-O {[%emt 0:00:06]} O-O {[%emt 0:00:15]} 10. e5 {[%emt 0:00:04]} Ne8 {[%emt 0:00:47]} 11. c4 {[%emt 0:07:09]} f5 {[%emt 0:01:57]} 12. cxd5 {[%emt 0:00:02]} cxd5 {[%emt 0:00:24]} 13. Nb3 {[%emt 0:00:14]} Bd7 {[%emt 0:00:58]} 14. Qe2 {[%emt 0:01:44]} Nc7 {[%emt 0:02:31]} 15. Rac1 {[%emt 0:00:05]} a6 {[%emt 0:01:32]} 16. Nd4 {[%emt 0:00:22]} Nb5 {[%emt 0:00:40]} 17. Be3 {[%emt 0:03:52]} Nxd4 {[%emt 0:01:06]} 18. Bxd4 {[%emt 0:00:01]} Qa5 {[%emt 0:00:21]} 19. a3 {[%emt 0:00:19]} Rfc8 {[%emt 0:00:46]} 20. Rxc8+ {[%emt 0:00:06]} Bxc8 {[%emt 0:00:01]} 21. Rc1 {[%emt 0:00:37]} Bd7 {[%emt 0:00:06]} 22. Qe3 {[%emt 0:01:08]} Qa4 {[%emt 0:01:21]} 23. g3 {[%emt 0:00:23]} Rc8 {[%emt 0:00:36]} 24. Rxc8+ {[%emt 0:00:08]} Bxc8 {[%emt 0:00:01]} 25. Bc5 {[%emt 0:00:13]} f4 {[%emt 0:01:21]} 26. gxf4 {[%emt 0:00:08]} Qd1+ {[%emt 0:00:00]} 27. Bf1 {[%emt 0:00:05]} Qg4+ {[%emt 0:00:00]} 28. Bg2 {[%emt 0:00:01]} Qd1+ {[%emt 0:00:03]} 29. Bf1 {[%emt 0:00:01]} Qg4+ {[%emt 0:00:08]} 30. Kh1 {[%emt 0:00:12]} d4 {[%emt 0:00:03]} 31. Qe4 {[%emt 0:00:06]} Bxc5 {[%emt 0:00:01]} 32. Qc6 {[%emt 0:00:04]} Bf8 {[%emt 0:00:13]} 33. Qxc8 {[%emt 0:00:02]} Qf3+ {[%emt 0:00:02]} 34. Kg1 {[%emt 0:00:01]} Qg4+ {[%emt 0:00:01]} 35. Kh1 {[%emt 0:00:02]} Qf3+ {[%emt 0:00:11]} 36. Kg1 {[%emt 0:00:01]} Qg4+ {[%emt 0:00:02]} 37. Kh1 {[%emt 0:00:01]} d3 {[%emt 0:00:07]} 38. Qd8 {[%emt 0:00:20]} Qf3+ {[%emt 0:00:04]} 39. Kg1 {[%emt 0:00:01]} Qg4+ {[%emt 0:00:04]} 40. Kh1 {[%emt 0:00:02]} Qf3+ {[%emt 0:00:06]} 41. Kg1 {[%emt 0:00:01]} Qg4+ {[%emt 0:00:05]} 1/2-1/2

[Event "Romania GP Final-Prel 2024"]
[Site "Alba Iulia"]
[Date "2024.11.25"]
[Round "1.6"]
[White "Ghimpu, Samuel-Timotei"]
[Black "Secheres, Adrian-Simion"]
[Result "0-1"]
[ECO "A48"]
[WhiteElo "2473"]
[BlackElo "2350"]
[Annotator "RC"]
[PlyCount "110"]
[EventDate "2024.11.22"]
[EventType "tourn"]
[EventCountry "ROU"]
[SourceTitle "playchess.com"]
[Source "ChessBase"]
[SourceQuality "1"]
[TimeControl "900+5"]

1. Nf3 {[%emt 0:00:10]} Nf6 {[%emt 0:00:08]} 2. d4 {[%emt 0:00:10]} g6 {[%emt 0:00:12]} 3. Nbd2 {[%emt 0:00:09]} c5 {[%emt 0:00:21]} 4. dxc5 {[%emt 0:00:11]} Qa5 {[%emt 0:00:03]} 5. a3 {[%emt 0:00:09]} Qxc5 {[%emt 0:00:02]} 6. b4 {[%emt 0:00:03]} Qc7 {[%emt 0:00:02]} 7. Bb2 {[%emt 0:00:05]} Bg7 {[%emt 0:00:02]} 8. e3 {[%emt 0:00:05]} O-O {[%emt 0:00:09]} 9. c4 {[%emt 0:00:02]} d6 {[%emt 0:00:16]} 10. Be2 {[%emt 0:00:05]} b6 {[%emt 0:00:10]} 11. O-O {[%emt 0:00:20]} Bb7 {[%emt 0:00:03]} 12. Qb3 {[%emt 0:01:05]} Nbd7 {[%emt 0:00:04]} 13. Rac1 {[%emt 0:00:12]} Rac8 {[%emt 0:00:37]} 14. Qa2 {[%emt 0:00:39]} Qb8 {[%emt 0:00:23]} 15. Rfd1 {[%emt 0:00:24]} Qa8 {[%emt 0:00:38]} 16. Bf1 {[%emt 0:00:19]} Rc7 {[%emt 0:00:29]} 17. Nd4 {[%emt 0:00:10]} a6 {[%emt 0:00:02]} 18. Qa1 {[%emt 0:01:29]} Rfc8 {[%emt 0:03:28]} 19. N4b3 {[%emt 0:00:42]} d5 {[%emt 0:02:00]} 20. cxd5 {[%emt 0:05:41]} Bxd5 {[%emt 0:00:06]} 21. Rxc7 {[%emt 0:01:07]} Rxc7 {[%emt 0:00:02]} 22. f3 {[%emt 0:00:45]} Qc8 {[%emt 0:01:03]} 23. e4 {[%emt 0:00:58]} Bb7 {[%emt 0:00:24]} 24. Rc1 {[%emt 0:00:01]} Bh6 {[%emt 0:00:10]} 25. Rxc7 {[%emt 0:00:09]} Qxc7 {[%emt 0:00:01]} 26. Nc4 {[%emt 0:00:07]} Bf4 {[%emt 0:03:01]} 27. g3 {[%emt 0:00:55]} Bh6 {[%emt 0:00:29]} 28. Bd4 {[%emt 0:00:13]} b5 {[%emt 0:00:03]} 29. Nca5 {[%emt 0:00:07]} Nh5 {[%emt 0:00:38]} 30. Qc3 {[%emt 0:00:15]} Qxc3 {[%emt 0:01:11]} 31. Bxc3 {[%emt 0:00:00]} Be3+ {[%emt 0:00:19]} 32. Kg2 {[%emt 0:00:04]} Bc8 {[%emt 0:00:02]} 33. f4 {[%emt 0:00:30]} Nhf6 {[%emt 0:00:15]} 34. Kf3 {[%emt 0:00:02]} Bg1 {[%emt 0:00:06]} 35. Bd4 {[%emt 0:00:16]} Bxd4 {[%emt 0:00:10]} 36. Nxd4 {[%emt 0:00:01]} Nb6 {[%emt 0:00:11]} 37. f5 {[%emt 0:00:20]} gxf5 {[%emt 0:00:07]} 38. exf5 {[%emt 0:00:02]} Nfd5 {[%emt 0:00:19]} 39. Bd3 {[%emt 0:00:08]} Kg7 {[%emt 0:00:05]} 40. Be4 {[%emt 0:00:03]} h6 {[%emt 0:00:14]} 41. Nab3 {[%emt 0:00:08]} Kf6 {[%emt 0:00:07]} 42. Nc5 {[%emt 0:00:03]} Nc3 {[%emt 0:00:02]} 43. Bc2 {[%emt 0:00:06]} Nc4 {[%emt 0:00:03]} 44. a4 {[%emt 0:00:05]} bxa4 {[%emt 0:00:02]} 45. Nxa4 {[%emt 0:00:02]} Nxa4 {[%emt 0:00:01]} 46. Bxa4 {[%emt 0:00:01]} Bxf5 {[%emt 0:00:02]} 47. Nxf5 {[%emt 0:00:11]} Kxf5 {[%emt 0:00:02]} 48. Bc2+ {[%emt 0:00:04]} Ke5 {[%emt 0:00:04]} 49. Kg4 {[%emt 0:00:05]} Ne3+ {[%emt 0:00:01]} 50. Kh5 {[%emt 0:00:04]} Nxc2 {[%emt 0:00:01]} 51. Kxh6 {[%emt 0:00:00]} Nxb4 {[%emt 0:00:03]} 52. h4 {[%emt 0:00:01]} Kf5 {[%emt 0:00:20]} 53. Kg7 {[%emt 0:00:03]} Kg4 {[%emt 0:00:02]} 54. Kxf7 {[%emt 0:00:03]} a5 {[%emt 0:00:10]} 55. Kg6 {[%emt 0:00:02]} Nd3 {[%emt 0:00:09]} 0-1

[Event "Romania GP Final-Prel 2024"]
[Site "Alba Iulia"]
[Date "2024.11.25"]
[Round "1.7"]
[White "Santos Latasa, Jaime"]
[Black "Lupulescu, Constantin"]
[Result "1/2-1/2"]
[ECO "B30"]
[WhiteElo "2630"]
[BlackElo "2591"]
[Annotator "RC"]
[PlyCount "66"]
[EventDate "2024.11.22"]
[EventType "tourn"]
[EventCountry "ROU"]
[SourceTitle "playchess.com"]
[Source "ChessBase"]
[SourceQuality "1"]
[TimeControl "900+5"]

1. e4 {[%emt 0:00:03]} c5 {[%emt 0:00:02]} 2. Nf3 {[%emt 0:00:03]} Nc6 {[%emt 0:00:03]} 3. Nc3 {[%emt 0:00:08]} Nf6 {[%emt 0:00:09]} 4. Bb5 {[%emt 0:00:04]} g6 {[%emt 0:00:10]} 5. d3 {[%emt 0:01:05]} Bg7 {[%emt 0:00:26]} 6. e5 {[%emt 0:00:24]} Ng4 {[%emt 0:00:47]} 7. Bxc6 {[%emt 0:00:02]} bxc6 {[%emt 0:00:52]} 8. Qe2 {[%emt 0:00:41]} f6 {[%emt 0:00:38]} 9. e6 {[%emt 0:00:49]} d5 {[%emt 0:01:16]} 10. Bf4 {[%emt 0:00:27]} O-O {[%emt 0:00:52]} 11. O-O {[%emt 0:00:30]} c4 {[%emt 0:01:10]} 12. d4 {[%emt 0:01:06]} f5 {[%emt 0:00:46]} 13. Ne5 {[%emt 0:01:46]} Nxe5 {[%emt 0:00:25]} 14. Bxe5 {[%emt 0:00:02]} Bxe5 {[%emt 0:00:03]} 15. Qxe5 {[%emt 0:00:02]} Rf6 {[%emt 0:00:04]} 16. Na4 {[%emt 0:00:18]} Rxe6 {[%emt 0:00:24]} 17. Qf4 {[%emt 0:00:06]} Re4 {[%emt 0:00:40]} 18. Qd2 {[%emt 0:00:14]} e5 {[%emt 0:00:06]} 19. dxe5 {[%emt 0:00:07]} Rxe5 {[%emt 0:00:18]} 20. Rfe1 {[%emt 0:00:05]} Rxe1+ {[%emt 0:00:37]} 21. Rxe1 {[%emt 0:00:02]} Qf8 {[%emt 0:00:22]} 22. Qa5 {[%emt 0:00:38]} Bd7 {[%emt 0:01:04]} 23. Nc5 {[%emt 0:00:41]} Qd6 {[%emt 0:00:17]} 24. Nb7 {[%emt 0:00:11]} Qf8 {[%emt 0:01:01]} 25. Nc5 {[%emt 0:02:19]} Qd6 {[%emt 0:00:01]} 26. h3 {[%emt 0:00:18]} f4 {[%emt 0:01:08]} 27. Nb7 {[%emt 0:00:30]} Qf6 {[%emt 0:00:39]} 28. Qc7 {[%emt 0:00:07]} Re8 {[%emt 0:00:18]} 29. Rxe8+ {[%emt 0:00:08]} Bxe8 {[%emt 0:00:02]} 30. Qb8 {[%emt 0:00:53]} Qe7 {[%emt 0:01:48]} 31. Nd6 {[%emt 0:00:14]} Kf8 {[%emt 0:00:03]} 32. Nxe8 {[%emt 0:00:37]} Qxe8 {[%emt 0:00:01]} 33. Qxf4+ {[%emt 0:00:03]} Kg8 {[%emt 0:00:05]} 1/2-1/2

[Event "Romania GP Final-Prel 2024"]
[Site "Alba Iulia"]
[Date "2024.11.25"]
[Round "1.8"]
[White "Sachilaru, Alexandru"]
[Black "Nisipeanu, Liviu-Dieter"]
[Result "0-1"]
[ECO "C77"]
[WhiteElo "2305"]
[BlackElo "2596"]
[Annotator "RC"]
[PlyCount "96"]
[EventDate "2024.11.22"]
[EventType "tourn"]
[EventCountry "ROU"]
[SourceTitle "playchess.com"]
[Source "ChessBase"]
[SourceQuality "1"]
[TimeControl "900+5"]

1. e4 {[%emt 0:00:03]} e5 {[%emt 0:00:15]} 2. Nf3 {[%emt 0:00:02]} Nc6 {[%emt 0:00:02]} 3. Bb5 {[%emt 0:00:03]} a6 {[%emt 0:00:02]} 4. Ba4 {[%emt 0:00:02]} Nf6 {[%emt 0:00:02]} 5. Bxc6 {[%emt 0:00:06]} dxc6 {[%emt 0:00:01]} 6. d3 {[%emt 0:00:02]} Bd6 {[%emt 0:00:52]} 7. O-O {[%emt 0:00:06]} Bg4 {[%emt 0:00:31]} 8. Be3 {[%emt 0:00:34]} Qe7 {[%emt 0:01:19]} 9. Nbd2 {[%emt 0:00:59]} Nd7 {[%emt 0:00:09]} 10. a3 {[%emt 0:01:50]} O-O-O {[%emt 0:03:26]} 11. b4 {[%emt 0:01:21]} f5 {[%emt 0:00:04]} 12. exf5 {[%emt 0:01:35]} Nf6 {[%emt 0:00:26]} 13. h3 {[%emt 0:03:07]} Bxf5 {[%emt 0:00:03]} 14. Ng5 {[%emt 0:00:20]} Rhf8 {[%emt 0:01:25]} 15. Nge4 {[%emt 0:00:50]} Qe6 {[%emt 0:00:42]} 16. Qe2 {[%emt 0:01:21]} h6 {[%emt 0:00:17]} 17. Rfb1 {[%emt 0:01:13]} Nd5 {[%emt 0:00:48]} 18. a4 {[%emt 0:01:06]} Bxb4 {[%emt 0:01:23]} 19. Bc5 {[%emt 0:01:15]} Nf4 {[%emt 0:02:28]} 20. Qe3 {[%emt 0:00:09]} Bxd2 {[%emt 0:00:03]} 21. Nxd2 {[%emt 0:00:10]} Qg6 {[%emt 0:00:02]} 22. g3 {[%emt 0:00:12]} Nxh3+ {[%emt 0:00:04]} 23. Kg2 {[%emt 0:00:13]} Nf4+ {[%emt 0:00:03]} 24. Kg1 {[%emt 0:00:09]} Rfe8 {[%emt 0:01:15]} 25. Rb3 {[%emt 0:00:06]} Nd5 {[%emt 0:00:08]} 26. Qf3 {[%emt 0:00:05]} e4 {[%emt 0:00:04]} 27. Nxe4 {[%emt 0:00:07]} Bxe4 {[%emt 0:00:02]} 28. dxe4 {[%emt 0:00:02]} Qxe4 {[%emt 0:00:02]} 29. Qxe4 {[%emt 0:00:06]} Rxe4 {[%emt 0:00:01]} 30. a5 {[%emt 0:00:03]} Rc4 {[%emt 0:00:05]} 31. Ba3 {[%emt 0:00:05]} Rxc2 {[%emt 0:00:08]} 32. Rab1 {[%emt 0:00:05]} Nc3 {[%emt 0:00:07]} 33. Re1 {[%emt 0:00:05]} Rd1 {[%emt 0:00:33]} 34. Rxd1 {[%emt 0:00:02]} Nxd1 {[%emt 0:00:02]} 35. Rf3 {[%emt 0:00:10]} b5 {[%emt 0:00:23]} 36. axb6 {[%emt 0:00:04]} cxb6 {[%emt 0:00:01]} 37. Bf8 {[%emt 0:00:03]} g6 {[%emt 0:00:11]} 38. Bxh6 {[%emt 0:00:03]} a5 {[%emt 0:00:03]} 39. Bg7 {[%emt 0:00:14]} b5 {[%emt 0:00:01]} 40. g4 {[%emt 0:00:02]} b4 {[%emt 0:00:02]} 41. Rf8+ {[%emt 0:00:04]} Kb7 {[%emt 0:00:01]} 42. f4 {[%emt 0:00:02]} Ne3 {[%emt 0:00:11]} 43. f5 {[%emt 0:00:05]} gxf5 {[%emt 0:00:06]} 44. Rf7+ {[%emt 0:00:06]} Ka6 {[%emt 0:00:07]} 45. gxf5 {[%emt 0:00:02]} Rg2+ {[%emt 0:00:08]} 46. Kh1 {[%emt 0:00:02]} Rf2 {[%emt 0:00:01]} 47. Bd4 {[%emt 0:00:12]} Rf1+ {[%emt 0:00:02]} 48. Kh2 {[%emt 0:00:01]} Nxf5 {[%emt 0:00:02]} 0-1

[Event "Romania GP Final-Prel 2024"]
[Site "Alba Iulia"]
[Date "2024.11.25"]
[Round "2.1"]
[White "Deac, Bogdan-Daniel"]
[Black "Dragomirescu, Angela"]
[Result "1-0"]
[ECO "A46"]
[WhiteElo "2687"]
[BlackElo "2060"]
[Annotator "TA"]
[PlyCount "38"]
[EventDate "2024.11.22"]
[EventType "tourn"]
[EventCountry "ROU"]
[SourceTitle "playchess.com"]
[Source "ChessBase"]
[SourceQuality "1"]
[TimeControl "900+5"]

{[%evp 9,38,41,51,54,51,46,56,29,70,21,29,17,42,34,41,17,29,46,50,40,37,43,55,40,49,54,160,183,498,489,519]} 1. d4 {[%emt 0:00:03]} d6 {[%emt 0:00:00]} 2. Nf3 {[%emt 0:00:34]} Nf6 {[%emt 0:00:10]} 3. Bf4 {[%emt 0:00:08]} Nbd7 {[%emt 0:00:11]} 4. Nc3 {[%emt 0:00:04]} c6 {[%emt 0:00:11]} 5. e4 {[%emt 0:00:08][%cal Be2e4,Be4e5][%mdl 32]} g6 {[%emt 0:01:30]} 6. e5 {[%emt 0:00:26]} Nh5 {[%emt 0:00:30]} 7. Be3 {[%emt 0:00:27]} Qc7 {[%emt 0:02:02]} 8. exd6 {[%emt 0:03:47] White is slightly better.} Qxd6 {[%emt 0:01:52]} 9. Ne4 {[%emt 0:02:37]} ({White should try} 9. a4 $14) 9... Qc7 $11 {[%emt 0:02:24]} 10. Bc4 {[%emt 0:00:10] Nfg5 is the strong threat.} Nb6 {[%emt 0:00:35][%cal Bd7b6,Bb6d5,Bd5b4][%mdl 32]} 11. Bb3 {[%emt 0:00:18]} Bg7 {[%emt 0:00:57] Prevents Ne5.} 12. Ng3 {[%emt 0:01:06]} Nf4 {[%emt 0:00:32]} 13. O-O {[%emt 0:00:12]} O-O {[%emt 0:04:18]} 14. Re1 {[%emt 0:00:03]} Nbd5 {[%emt 0:00:10][%cal Oc6c5]} 15. Bd2 {[%emt 0:00:11]} c5 {[%emt 0:00:34]} 16. c4 {[%emt 0:02:02]} Nb4 {[%emt 0:00:06]} 17. Re4 $1 {[%emt 0:01:49]} Ne6 {[%emt 0:00:19]} (17... Nbd3 $14) 18. d5 $16 {[%emt 0:00:10]} Nd4 {[%emt 0:00:07] [#]} (18... f5 {is a better chance.}) 19. Nxd4 $18 {[%emt 0:00:05]} Bxd4 {[%emt 0:00:12] Weighted Error Value: White=0.07 (flawless) /Black=0.40.  Mistake:       	White=1     	Black=2      Inaccurate:     	White=1     	Black=1      OK:         	White=7     	Black=5      Strong:       	White=1     	---} 1-0